fUSD/lending_fUSD_20250416
["ID","MTS","AMOUNT","RATE_DAILY","PERIOD"]
[358199409,1744830647365,-771.18,0.00055487,8]
[358199411,1744830647374,-1172.38,0.00055487,120]
[358199412,1744830647383,-500.0,0.00055487,120]
[358199414,1744830647393,-643.77,0.00055487,120]
[358199416,1744830647402,-500.0,0.00055487,120]
[358199417,1744830647411,-500.0,0.00055488,120]
[358199419,1744830647421,-715.77,0.00055488,120]
[358199421,1744830647430,-1045.42,0.00055488,120]
[358199422,1744830647440,-151.0,0.00055488,120]
[358199424,1744830647450,-500.0,0.00055488,120]
[358199426,1744830647459,-500.0,0.00055488,120]
[358199428,1744830647469,-500.0,0.00055488,120]
[358199430,1744830647478,-1516.88,0.00055488,120]
[358199431,1744830647487,-500.0,0.00055488,120]
[358199433,1744830647497,-500.0,0.00055488,120]
[358199435,1744830647506,-500.0,0.00055488,120]
[358199436,1744830647516,-635.32,0.00055488,120]
[358199438,1744830647526,-509.71,0.00055488,120]
[358199440,1744830647535,-148553.1,0.00055488,7]
[358199441,1744830647544,-520.32,0.00055488,120]
[358199443,1744830647553,-500.0,0.00055488,120]
[358199445,1744830647563,-500.0,0.00055488,120]
[358199447,1744830647572,-500.0,0.00055488,120]
[358199449,1744830647582,-1396.29,0.00055488,2]
[358199450,1744830647592,-500.0,0.00055488,120]
[358199452,1744830647602,-500.0,0.00055488,120]
[358199454,1744830647616,-2578.79,0.00055488,120]
[358199456,1744830647626,-500.0,0.00055488,120]
[358199457,1744830647636,-500.0,0.00055488,120]
[358199459,1744830647646,-500.0,0.00055488,120]
[358199461,1744830647657,-500.0,0.00055488,120]
[358199463,1744830647667,-187.88,0.00055489,2]
[358199465,1744830647677,-341.43351157,0.00055489,7]
[358199466,1744830647687,-500.0,0.00055489,120]
[358199468,1744830647697,-715.77,0.00055489,120]
[358199470,1744830647707,-500.0,0.00055489,120]
[358199472,1744830647717,-1045.42,0.00055489,120]
[358199474,1744830647727,-500.0,0.00055489,120]
[358199475,1744830647736,-500.0,0.00055489,120]
[358199477,1744830647745,-500.0,0.00055489,120]
[358199479,1744830647755,-1516.88,0.00055489,120]
[358199481,1744830647764,-7959.04,0.00055489,120]
[358199483,1744830647775,-968.88,0.00055489,120]
[358199484,1744830647784,-500.0,0.00055489,120]
[358199486,1744830647794,-500.0,0.00055489,120]
[358199488,1744830647803,-151.0,0.00055489,120]
[358199489,1744830647813,-500.0,0.00055489,120]
[358199491,1744830647822,-151.0,0.00055489,120]
[358199493,1744830647832,-151.0,0.00055489,120]
[358199495,1744830647842,-414.64,0.00055489,120]
[358199497,1744830647852,-151.0,0.00055489,120]
[358199498,1744830647862,-151.0,0.00055489,120]
[358199500,1744830647872,-1192.3,0.00055489,120]
[358199502,1744830647881,-151.0,0.00055489,120]
[358199504,1744830647891,-898.452426,0.00055489,120]
[358199505,1744830647901,-151.0,0.00055489,120]
[358199507,1744830647910,-151.0,0.00055489,120]
[358199509,1744830647920,-1579.3,0.00055489,120]
[358199511,1744830647930,-151.0,0.00055489,120]
[358199513,1744830647939,-771.18,0.00055489,8]
[358199514,1744830647949,-151.0,0.00055489,120]
[358199516,1744830647959,-151.0,0.00055489,120]
[358199518,1744830647969,-151.0,0.00055489,120]
[358199520,1744830647978,-151.0,0.00055489,120]
[358199521,1744830647988,-151.0,0.00055489,120]
[358199523,1744830647998,-151.0,0.00055489,120]
[358199525,1744830648008,-191.384169,0.00055489,120]
[358199527,1744830648018,-191.384169,0.00055489,120]
[358199529,1744830648028,-151.0,0.00055489,120]
[358199530,1744830648038,-151.0,0.00055489,120]
[358199532,1744830648048,-151.0,0.00055489,120]
[358199534,1744830648058,-1172.38,0.00055489,120]
[358199536,1744830648068,-500.0,0.00055489,120]
[358199538,1744830648077,-500.0,0.00055489,120]
[358199539,1744830648087,-151.0,0.00055489,120]
[358199541,1744830648098,-151.0,0.00055489,120]
[358199553,1744830648235,-151.0,0.00055489,120]
[358199555,1744830648245,-151.0,0.00055489,90]
[358199557,1744830648255,-500.0,0.00055489,120]
[358199558,1744830648268,-151.0,0.00055489,120]
[358199560,1744830648287,-151.0,0.00055489,120]
[358199562,1744830648298,-500.0,0.00055489,120]
[358199564,1744830648307,-500.0,0.00055489,120]
[358199566,1744830648317,-500.0,0.00055489,120]
[358199567,1744830648326,-500.0,0.00055489,120]
[358199569,1744830648336,-500.0,0.00055489,120]
[358199571,1744830648347,-610.08,0.00055489,120]
[358199573,1744830648357,-500.0,0.00055489,120]
[358199574,1744830648367,-500.0,0.00055489,120]
[358199576,1744830648377,-500.0,0.00055489,120]
[358199578,1744830648387,-500.0,0.00055489,120]
[358199580,1744830648396,-500.0,0.00055489,120]
[358199581,1744830648406,-197.65844668,0.00055489,120]
[358199583,1744830648416,-500.0,0.00055489,120]
[358199585,1744830648425,-622.15,0.00055489,120]
[358199587,1744830648435,-500.0,0.00055489,120]
[358199588,1744830648444,-500.0,0.00055489,120]
[358199590,1744830648454,-500.0,0.00055489,120]
[358199592,1744830648463,-500.0,0.00055489,120]
[358199594,1744830648472,-500.0,0.00055489,120]
[358199595,1744830648482,-500.0,0.00055489,120]
[358199597,1744830648492,-500.0,0.00055489,120]
[358199599,1744830648501,-500.0,0.00055489,120]
[358199601,1744830648511,-525.94,0.00055489,120]
[358199602,1744830648520,-500.0,0.00055489,120]
[358199604,1744830648529,-472.81222735,0.00055489,120]
[358199606,1744830648538,-666.2,0.00055489,120]
[358199608,1744830648548,-500.0,0.00055489,120]
[358199610,1744830648557,-500.0,0.00055489,120]
[358199611,1744830648567,-524.17,0.00055489,120]
[358199613,1744830648577,-500.0,0.00055489,120]
[358199615,1744830648586,-500.0,0.00055489,120]
[358199617,1744830648596,-500.0,0.00055489,120]
[358199619,1744830648606,-500.0,0.00055489,120]
[358199620,1744830648619,-680.35,0.00055489,120]
[358199622,1744830648629,-175.7,0.00055489,120]
[358199624,1744830648638,-500.0,0.00055489,120]
[358199625,1744830648648,-222.87,0.00055489,120]
[358199627,1744830648657,-500.0,0.00055489,120]
[358199629,1744830648667,-500.0,0.00055489,120]
[358199631,1744830648676,-643.77,0.00055489,120]
[358199632,1744830648685,-500.0,0.00055489,120]
[358199634,1744830648696,-196.70425333,0.00055489,120]
[358199636,1744830648705,-763.58,0.00055489,120]
[358199638,1744830648715,-500.0,0.00055489,120]
[358199639,1744830648724,-500.0,0.00055489,120]
[358199641,1744830648733,-2516.51,0.00055489,120]
[358199643,1744830648742,-500.0,0.00055489,120]
[358199645,1744830648752,-1799.29,0.00055489,120]
[358199646,1744830648762,-500.0,0.00055489,120]
[358199648,1744830648771,-906.19,0.00055489,120]
[358199650,1744830648781,-500.0,0.00055489,120]
[358199652,1744830648790,-165.770271,0.00055489,120]
[358199654,1744830648799,-500.0,0.00055489,120]
[358199655,1744830648809,-633.91,0.00055489,120]
[358199657,1744830648818,-500.0,0.00055489,120]
[358199659,1744830648828,-500.0,0.00055489,120]
[358199661,1744830648837,-4616.81,0.00055489,120]
[358199662,1744830648847,-500.0,0.00055489,120]
[358199664,1744830648856,-152.79,0.00055489,120]
[358199666,1744830648867,-151.0,0.0005549,120]
[358199668,1744830648876,-151.0,0.0005549,120]
[358199669,1744830648886,-151.0,0.0005549,120]
[358199671,1744830648895,-151.0,0.0005549,120]
[358199673,1744830648904,-151.0,0.0005549,120]
[358199675,1744830648914,-151.0,0.0005549,120]
[358199676,1744830648923,-164.326403,0.0005549,120]
[358199678,1744830648932,-151.0,0.0005549,120]
[358199680,1744830648942,-151.0,0.0005549,30]
[358199682,1744830648952,-151.0,0.0005549,120]
[358199683,1744830648961,-151.0,0.0005549,120]
[358199685,1744830648971,-151.0,0.0005549,120]
[358199687,1744830648980,-368.849452,0.0005549,120]
[358199689,1744830648990,-151.0,0.0005549,120]
[358199691,1744830648999,-295.005798,0.0005549,120]
[358199692,1744830649009,-295.005798,0.0005549,120]
[358199694,1744830649018,-139875.6627097,0.0005549,2]
[358199696,1744830649028,-151.0,0.0005549,120]
[358199698,1744830649037,-5591.4709849,0.0005549,2]
[358199700,1744830649047,-288.970482,0.0005549,120]
[358199702,1744830649056,-151.0,0.0005549,120]
[358199704,1744830649066,-288.970482,0.0005549,120]
[358199706,1744830649076,-151.0,0.0005549,120]
[358199708,1744830649085,-151.0,0.0005549,120]
[358199710,1744830649095,-151.0,0.0005549,120]
[358199712,1744830649105,-151.0,0.0005549,120]
[358199714,1744830649120,-151.0,0.0005549,120]
[358199715,1744830649130,-151.0,0.0005549,120]
[358199716,1744830649141,-151.0,0.0005549,120]
[358199717,1744830649151,-151.0,0.0005549,120]
[358199718,1744830649161,-151.0,0.0005549,120]
[358199719,1744830649171,-151.0,0.0005549,120]
[358199720,1744830649180,-151.0,0.0005549,120]
[358199721,1744830649188,-227.077897,0.0005549,120]
[358199722,1744830649197,-227.077897,0.0005549,120]
[358199723,1744830649206,-151.0,0.0005549,120]
[358199724,1744830649216,-273.8245,0.0005549,120]
[358199725,1744830649227,-273.8245,0.0005549,120]
[358199726,1744830649237,-151.0,0.0005549,120]
[358199727,1744830649247,-151.0,0.0005549,120]
[358199728,1744830649257,-151.0,0.0005549,120]
[358199729,1744830649268,-2341.209607,0.0005549,120]
[358199730,1744830649278,-2341.209607,0.0005549,120]
[358199731,1744830649289,-151.0,0.0005549,120]
[358199732,1744830649300,-151.0,0.0005549,120]
[358199733,1744830649310,-151.0,0.0005549,120]
[358199734,1744830649320,-500.0,0.00055495,120]
[358199735,1744830649332,-635.32,0.00055496,120]
[358199736,1744830649343,-509.71,0.00055496,120]
[358199737,1744830649353,-148553.1,0.00055496,7]
[358199738,1744830649370,-520.32,0.00055496,120]
[358199739,1744830649380,-500.0,0.00055496,120]
[358199740,1744830649391,-1396.29,0.00055496,2]
[358199741,1744830649401,-643.77,0.00055496,120]
[358199742,1744830649412,-500.0,0.00055496,120]
[358199743,1744830649422,-332.62392733,0.00055496,120]
[358199744,1744830649432,-2578.79,0.00055496,120]
[358199745,1744830649443,-500.0,0.00055496,120]
[358199747,1744830649453,-500.0,0.00055496,120]
[358199748,1744830649463,-500.0,0.00055497,120]
[358199749,1744830649473,-715.77,0.00055497,120]
[358199751,1744830649483,-500.0,0.00055497,120]
[358199752,1744830649493,-1045.42,0.00055497,120]
[358199754,1744830649503,-500.0,0.00055497,120]
[358199756,1744830649513,-500.0,0.00055497,120]
[358199758,1744830649523,-500.0,0.00055497,120]
[358199760,1744830649532,-1516.88,0.00055497,120]
[358199762,1744830649542,-7959.04,0.00055497,120]
[358199764,1744830649551,-968.88,0.00055497,120]
[358199766,1744830649561,-500.0,0.00055497,120]
[358199768,1744830649571,-500.0,0.00055497,120]
[358199770,1744830649580,-1192.3,0.00055497,120]
[358199772,1744830649590,-1579.3,0.00055497,120]
[358199774,1744830649599,-771.18,0.00055497,8]
[358199776,1744830649612,-1172.38,0.00055497,120]
[358199778,1744830649625,-500.0,0.00055497,120]
[358199780,1744830649634,-151.0,0.00055497,120]
[358199782,1744830649644,-151.0,0.00055497,120]
[358199784,1744830649655,-151.0,0.00055497,120]
[358199786,1744830649664,-151.0,0.00055497,90]
[358199788,1744830649674,-500.0,0.00055497,120]
[358199790,1744830649683,-151.0,0.00055497,120]
[358199792,1744830649693,-151.0,0.00055497,120]
[358199794,1744830649703,-500.0,0.00055497,120]
[358199796,1744830649713,-500.0,0.00055497,120]
[358199798,1744830649722,-500.0,0.00055497,120]
[358199800,1744830649731,-500.0,0.00055497,120]
[358199802,1744830649742,-610.08,0.00055497,120]
[358199804,1744830649751,-500.0,0.00055497,120]
[358199806,1744830649760,-197.36,0.00055497,120]
[358199808,1744830649770,-500.0,0.00055497,120]
[358199810,1744830649779,-156.72301307,0.00055497,120]
[358199812,1744830649788,-485.66,0.00055497,120]
[358199814,1744830649798,-622.15,0.00055497,120]
[358199815,1744830649808,-500.0,0.00055497,120]
[358199817,1744830649817,-500.0,0.00055497,120]
[358199819,1744830649826,-500.0,0.00055497,120]
[358199821,1744830649836,-500.0,0.00055497,120]
[358199823,1744830649845,-500.0,0.00055497,120]
[358199825,1744830649855,-525.94,0.00055497,120]
[358199826,1744830649868,-500.0,0.00055497,120]
[358199828,1744830649877,-635.32,0.00055497,120]
[358199830,1744830649887,-500.0,0.00055497,120]
[358199832,1744830649896,-524.17,0.00055497,120]
[358199834,1744830649906,-509.71,0.00055497,120]
[358199836,1744830649915,-500.0,0.00055497,120]
[358199838,1744830649925,-148553.1,0.00055497,7]
[358199840,1744830649934,-500.0,0.00055497,120]
[358199842,1744830649943,-500.0,0.00055497,120]
[358199844,1744830649952,-500.0,0.00055497,120]
[358199846,1744830649961,-680.35,0.00055497,120]
[358199848,1744830649972,-520.32,0.00055497,120]
[358199849,1744830649981,-500.0,0.00055497,120]
[358199851,1744830649990,-500.0,0.00055497,120]
[358199853,1744830649999,-1396.29,0.00055497,2]
[358199855,1744830650009,-500.0,0.00055497,120]
[358199857,1744830650018,-500.0,0.00055497,120]
[358199859,1744830650027,-643.77,0.00055497,120]
[358199861,1744830650037,-643.77,0.00055497,120]
[358199863,1744830650046,-500.0,0.00055497,120]
[358199865,1744830650056,-151.0,0.00055497,120]
[358199867,1744830650065,-763.58,0.00055497,120]
[358199869,1744830650075,-500.0,0.00055497,120]
[358199870,1744830650084,-151.0,0.00055497,120]
[358199872,1744830650093,-2341.209607,0.00055497,120]
[358199874,1744830650103,-2341.209607,0.00055497,120]
[358199876,1744830650117,-500.0,0.00055497,120]
[358199878,1744830650128,-500.0,0.00055497,120]
[358199880,1744830650137,-2516.51,0.00055497,120]
[358199882,1744830650147,-500.0,0.00055497,120]
[358199884,1744830650156,-2578.79,0.00055497,120]
[358199886,1744830650165,-151.0,0.00055497,120]
[358199888,1744830650175,-151.0,0.00055497,120]
[358199890,1744830650185,-1799.29,0.00055497,120]
[358199892,1744830650195,-468.88,0.00055497,120]
[358199894,1744830650203,-181.168806,0.00055497,120]
[358199896,1744830650214,-500.0,0.00055497,120]
[358199898,1744830650223,-906.19,0.00055497,120]
[358199900,1744830650234,-500.0,0.00055497,120]
[358199902,1744830650243,-500.0,0.00055497,120]
[358199904,1744830650252,-500.0,0.00055497,120]
[358199906,1744830650261,-633.91,0.00055497,120]
[358199908,1744830650271,-500.0,0.00055497,120]
[358199910,1744830650282,-500.0,0.00055497,120]
[358199912,1744830650292,-500.0,0.00055497,120]
[358199914,1744830650302,-4616.81,0.00055497,120]
[358199916,1744830650312,-500.0,0.00055497,120]
[358199918,1744830650321,-500.0,0.00055498,120]
[358199920,1744830650332,-500.0,0.00055498,120]
[358199921,1744830650341,-715.77,0.00055498,120]
[358199923,1744830650350,-715.77,0.00055498,120]
[358199925,1744830650361,-500.0,0.00055498,120]
[358199927,1744830650370,-500.0,0.00055498,120]
[358199929,1744830650379,-1045.42,0.00055498,120]
[358199931,1744830650388,-1045.42,0.00055498,120]
[358199933,1744830650397,-300.42,0.00055498,120]
[358199935,1744830650406,-500.0,0.00055498,120]
[358199937,1744830650415,-500.0,0.00055498,120]
[358199939,1744830650424,-500.0,0.00055498,120]
[358199941,1744830650433,-1516.88,0.00055498,120]
[358199942,1744830650443,-1516.88,0.00055498,120]
[358199944,1744830650452,-7959.04,0.00055498,120]
[358199946,1744830650461,-7959.04,0.00055498,120]
[358199948,1744830650471,-968.88,0.00055498,120]
[358199950,1744830650480,-968.88,0.00055498,120]
[358199952,1744830650489,-500.0,0.00055498,120]
[358199954,1744830650498,-500.0,0.00055498,120]
[358199956,1744830650507,-500.0,0.00055498,120]
[358199958,1744830650517,-151.0,0.00055498,120]
[358199960,1744830650526,-500.0,0.00055498,120]
[358199962,1744830650535,-500.0,0.00055498,120]
[358199963,1744830650544,-174.538136,0.00055498,120]
[358199965,1744830650554,-151.0,0.00055498,120]
[358199967,1744830650563,-151.0,0.00055498,120]
[358199969,1744830650572,-151.0,0.00055498,120]
[358199971,1744830650581,-1192.3,0.00055498,120]
[358199973,1744830650590,-1192.3,0.00055498,120]
[358199975,1744830650599,-898.452426,0.00055498,120]
[358199977,1744830650613,-151.0,0.00055498,120]
[358199979,1744830650622,-1579.3,0.00055498,120]
[358199981,1744830650631,-1579.3,0.00055498,120]
[358199983,1744830650641,-771.18,0.00055498,8]
[358199985,1744830650650,-771.18,0.00055498,8]
[358199987,1744830650660,-151.0,0.00055498,120]
[358199989,1744830650670,-151.0,0.00055498,120]
[358199990,1744830650679,-151.0,0.00055498,120]
[358199992,1744830650689,-296.302504,0.00055498,120]
[358199994,1744830650701,-191.384169,0.00055498,120]
[358199996,1744830650711,-191.384169,0.00055498,120]
[358199998,1744830650722,-151.0,0.00055498,120]
[358200000,1744830650734,-151.0,0.00055498,120]
[358200002,1744830650744,-151.0,0.00055498,120]
[358200004,1744830650754,-1172.38,0.00055498,120]
[358200006,1744830650764,-1172.38,0.00055498,120]
[358200008,1744830650774,-500.0,0.00055498,120]
[358200010,1744830650785,-500.0,0.00055498,120]
[358200012,1744830650795,-500.0,0.00055498,120]
[358200014,1744830650804,-500.0,0.00055498,120]
[358200016,1744830650814,-500.0,0.00055498,120]
[358200018,1744830650823,-371.33003731,0.00055498,120]
[358200019,1744830650832,-500.0,0.00055498,120]
[358200021,1744830650841,-500.0,0.00055498,120]
[358200023,1744830650851,-500.0,0.00055498,120]
[358200025,1744830650861,-151.62618818,0.00055498,120]
[358200027,1744830650870,-500.0,0.00055498,120]
[358200029,1744830650879,-500.0,0.00055498,120]
[358200031,1744830650888,-395.52,0.00055498,120]
[358200033,1744830650898,-610.08,0.00055498,120]
[358200035,1744830650908,-610.08,0.00055498,120]
[358200037,1744830650918,-151.0,0.00055498,120]
[358200039,1744830650927,-500.0,0.00055498,120]
[358200041,1744830650937,-500.0,0.00055498,120]
[358200043,1744830650947,-500.0,0.00055498,120]
[358200045,1744830650956,-500.0,0.00055498,120]
[358200047,1744830650965,-622.15,0.00055498,120]
[358200048,1744830650974,-622.15,0.00055498,120]
[358200050,1744830650984,-500.0,0.00055498,120]
[358200052,1744830650993,-500.0,0.00055498,120]
[358200054,1744830651002,-500.0,0.00055498,120]
[358200056,1744830651011,-160.730333,0.00055498,120]
[358200058,1744830651020,-151.0,0.00055498,120]
[358200060,1744830651029,-368.849452,0.00055498,120]
[358200062,1744830651038,-500.0,0.00055498,120]
[358200064,1744830651047,-500.0,0.00055498,120]
[358200066,1744830651056,-500.0,0.00055498,120]
[358200068,1744830651065,-151.0,0.00055498,120]
[358200070,1744830651074,-500.0,0.00055498,120]
[358200072,1744830651083,-500.0,0.00055498,120]
[358200074,1744830651092,-500.0,0.00055498,120]
[358200076,1744830651101,-500.0,0.00055498,120]
[358200077,1744830651111,-500.0,0.00055498,120]
[358200079,1744830651120,-500.0,0.00055498,120]
[358200081,1744830651130,-649.08858977,0.00055498,120]
[358200083,1744830651139,-525.94,0.00055498,120]
[358200085,1744830651149,-525.94,0.00055498,120]
[358200087,1744830651159,-500.0,0.00055498,120]
[358200088,1744830651167,-500.0,0.00055498,120]
[358200089,1744830651176,-295.005798,0.00055498,120]
[358200090,1744830651185,-295.005798,0.00055498,120]
[358200091,1744830651195,-635.32,0.00055498,120]
[358200092,1744830651204,-635.32,0.00055498,120]
[358200093,1744830651214,-151.0,0.00055498,120]
[358200094,1744830651224,-666.2,0.00055498,120]
[358200095,1744830651234,-500.0,0.00055498,120]
[358200096,1744830651243,-500.0,0.00055498,120]
[358200097,1744830651252,-288.970482,0.00055498,120]
[358200098,1744830651261,-500.0,0.00055498,120]
[358200099,1744830651270,-151.0,0.00055498,120]
[358200100,1744830651279,-288.970482,0.00055498,120]
[358200101,1744830651288,-524.17,0.00055498,120]
[358200102,1744830651297,-509.71,0.00055498,120]
[358200103,1744830651307,-524.17,0.00055498,120]
[358200104,1744830651316,-509.71,0.00055498,120]
[358200105,1744830651325,-500.0,0.00055498,120]
[358200106,1744830651336,-500.0,0.00055498,120]
[358200107,1744830651346,-151.0,0.00055498,120]
[358200108,1744830651355,-154.130142,0.00055498,120]
[358200109,1744830651366,-148553.1,0.00055498,7]
[358200110,1744830651376,-148553.1,0.00055498,7]
[358200111,1744830651386,-500.0,0.00055498,120]
[358200112,1744830651395,-500.0,0.00055498,120]
[358200113,1744830651403,-500.0,0.00055498,120]
[358200114,1744830651412,-500.0,0.00055498,120]
[358200115,1744830651420,-500.0,0.00055498,120]
[358200116,1744830651430,-500.0,0.00055498,120]
[358200117,1744830651438,-680.35,0.00055498,120]
[358200118,1744830651447,-520.32,0.00055498,120]
[358200119,1744830651456,-680.35,0.00055498,120]
[358200120,1744830651464,-520.32,0.00055498,120]
[358200121,1744830651473,-151.0,0.00055498,120]
[358200122,1744830651482,-500.0,0.00055498,120]
[358200123,1744830651490,-500.0,0.00055498,120]
[358200124,1744830651498,-151.0,0.00055498,120]
[358200125,1744830651505,-151.0,0.00055498,120]
[358200126,1744830651514,-151.0,0.00055498,120]
[358200127,1744830651521,-573.08,0.00055498,120]
[358200128,1744830651529,-151.0,0.00055498,120]
[358200129,1744830651537,-227.077897,0.00055498,120]
[358200130,1744830651546,-1396.29,0.00055498,2]
[358200131,1744830651555,-1396.29,0.00055498,2]
[358200133,1744830651565,-227.077897,0.00055498,120]
[358200135,1744830651574,-500.0,0.00055498,120]
[358200137,1744830651583,-500.0,0.00055498,120]
[358200139,1744830651592,-151.0,0.00055498,120]
[358200141,1744830651601,-273.8245,0.00055498,120]
[358200143,1744830651613,-273.8245,0.00055498,120]
[358200155,1744830651749,-500.0,0.00055498,120]
[358200157,1744830651760,-327.83,0.00055498,120]
[358200159,1744830651769,-643.77,0.00055498,120]
[358200161,1744830651779,-500.0,0.00055498,120]
[358200163,1744830651788,-452.42000001,0.00055498,120]
[358200165,1744830651798,-763.58,0.00055498,120]
[358200167,1744830651807,-763.58,0.00055498,120]
[358200169,1744830651817,-500.0,0.00055498,120]
[358200171,1744830651827,-500.0,0.00055498,120]
[358200173,1744830651836,-151.0,0.00055498,120]
[358200175,1744830651845,-2341.209607,0.00055498,120]
[358200177,1744830651855,-2341.209607,0.00055498,120]
[358200178,1744830651865,-500.0,0.00055498,120]
[358200180,1744830651875,-500.0,0.00055498,120]
[358200182,1744830651885,-500.0,0.00055498,120]
[358200184,1744830651894,-500.0,0.00055498,120]
[358200186,1744830651903,-2516.51,0.00055498,120]
[358200188,1744830651912,-2516.51,0.00055498,120]
[358200190,1744830651920,-500.0,0.00055498,120]
[358200192,1744830651929,-500.0,0.00055498,120]
[358200194,1744830651939,-2578.79,0.00055498,120]
[358200196,1744830651948,-2578.79,0.00055498,120]
[358200198,1744830651957,-151.0,0.00055498,120]
[358200200,1744830651967,-1799.29,0.00055498,120]
[358200202,1744830651976,-1799.29,0.00055498,120]
[358200204,1744830651985,-500.0,0.00055498,120]
[358200206,1744830651995,-906.19,0.00055498,120]
[358200208,1744830652004,-500.0,0.00055498,120]
[358200210,1744830652013,-906.19,0.00055498,120]
[358200211,1744830652022,-500.0,0.00055498,120]
[358200213,1744830652031,-500.0,0.00055498,120]
[358200215,1744830652040,-500.0,0.00055498,120]
[358200217,1744830652049,-500.0,0.00055498,120]
[358200219,1744830652058,-500.0,0.00055498,120]
[358200221,1744830652067,-633.91,0.00055498,120]
[358200223,1744830652077,-633.91,0.00055498,120]
[358200225,1744830652086,-500.0,0.00055498,120]
[358200227,1744830652096,-500.0,0.00055498,120]
[358200229,1744830652105,-1091.877831,0.00055498,120]
[358200231,1744830652115,-500.0,0.00055498,120]
[358200233,1744830652124,-500.0,0.00055498,120]
[358200235,1744830652133,-500.0,0.00055498,120]
[358200237,1744830652143,-500.0,0.00055498,120]
[358200239,1744830652153,-4616.81,0.00055498,120]
[358200241,1744830652162,-2783.76866299,0.00055498,120]
[358200251,1744830652245,-805.02960171,0.00055498,120]
[358200257,1744830652296,-151.0,0.00055464,120]
[358200259,1744830652307,-151.0,0.00055474,120]
[358200261,1744830652316,-144.87597906,0.0005548,120]
[358200263,1744830652328,-6.12402094,0.0005548,120]
[358200265,1744830652338,-753.87597916,0.00055485,120]
[358200267,1744830652350,-696.232,0.00055485,120]
[358200269,1744830652364,-168.18202084,0.00055485,120]
[358200271,1744830652373,-541.04098945,0.00055488,120]
[358200318,1744830653080,-1077.24901055,0.00055488,120]
[358200320,1744830653089,-1618.29,0.00055496,120]
[358200322,1744830653099,-1618.29,0.00055497,120]
[358200324,1744830653111,-1028.0117353,0.00055498,120]
[358200326,1744830653120,-500.0,0.00055498,120]
[358200328,1744830653129,-1618.29,0.00055498,120]
[358200330,1744830653138,-1618.29,0.00055498,120]
[358200332,1744830653148,-500.0,0.00055499,120]
[358200333,1744830653157,-500.0,0.00055499,120]
[358200335,1744830653166,-500.0,0.00055499,120]
[358200337,1744830653175,-715.77,0.00055499,120]
[358200339,1744830653184,-715.77,0.00055499,120]
[358200341,1744830653193,-715.77,0.00055499,120]
[358200343,1744830653203,-179.41,0.00055499,120]
[358200345,1744830653212,-1045.42,0.00055499,120]
[358200347,1744830653220,-1045.42,0.00055499,120]
[358200349,1744830653230,-151.0,0.00055499,120]
[358200351,1744830653239,-151.0,0.00055499,120]
[358200353,1744830653249,-500.0,0.00055499,120]
[358200355,1744830653258,-500.0,0.00055499,120]